[Event "Titled Tuesday Blitz December 20 Late 2022"]
[White "Solon, Nathan"]
[Black "Flynn, Jacob"]
[WhiteFideId "2017229"]
[BlackFideId "2509393"]
[WhiteElo "2623"]
[BlackElo "2053"]
[Result "1-0"]
[Round "10"]
[TimeControl "180+1"]
[Date "2022.12.21"]
[WhiteClock "0:00:23"]
[BlackClock "0:00:12"]

1. Nf3 {[%clk 0:02:56]}  d5 {[%clk 0:02:59]} 2. g3 {[%clk 0:02:56]}  Nc6 {[%clk 0:02:59]} 3. d4 {[%clk 0:02:56]}  Bf5 {[%clk 0:02:59]} 4. Bg2 {[%clk 0:02:56]}  Nb4 {[%clk 0:02:59]} 5. Na3 {[%clk 0:02:55]}  e6 {[%clk 0:02:59]} 6. O-O {[%clk 0:02:54]}  Be7 {[%clk 0:02:58]} 7. c3 {[%clk 0:02:46]}  Nc6 {[%clk 0:02:58]} 8. c4 {[%clk 0:02:46]}  Nf6 {[%clk 0:02:56]} 9. b3 {[%clk 0:02:43]}  O-O {[%clk 0:02:54]} 10. Nb5 {[%clk 0:02:38]}  Ne4 {[%clk 0:02:37]} 11. Bb2 {[%clk 0:02:32]}  a5 {[%clk 0:02:27]} 12. a4 {[%clk 0:02:29]}  Bb4 {[%clk 0:02:26]} 13. Rc1 {[%clk 0:02:28]}  h6 {[%clk 0:02:24]} 14. cxd5 {[%clk 0:02:25]}  exd5 {[%clk 0:02:23]} 15. Ba3 {[%clk 0:01:50]}  Bxa3 {[%clk 0:02:18]} 16. Nxa3 {[%clk 0:01:51]}  Nb4 {[%clk 0:02:15]} 17. Ne5 {[%clk 0:01:42]}  c6 {[%clk 0:02:14]} 18. Nb1 {[%clk 0:01:35]}  Qe7 {[%clk 0:02:08]} 19. Nd2 {[%clk 0:01:33]}  Nd6 {[%clk 0:01:58]} 20. Ndf3 {[%clk 0:01:27]}  Rae8 {[%clk 0:01:58]} 21. e3 {[%clk 0:01:25]}  Be4 {[%clk 0:01:57]} 22. Ne1 {[%clk 0:01:20]}  f6 {[%clk 0:01:53]} 23. N5d3 {[%clk 0:01:19]}  Bxd3 {[%clk 0:01:48]} 24. Nxd3 {[%clk 0:01:19]}  Ne4 {[%clk 0:01:46]} 25. Bxe4 {[%clk 0:01:12]}  Qxe4 {[%clk 0:01:35]} 26. Nxb4 {[%clk 0:01:10]}  axb4 {[%clk 0:01:36]} 27. Qd2 {[%clk 0:01:09]}  h5 {[%clk 0:01:28]} 28. Qc2 {[%clk 0:00:57]}  Qg4 {[%clk 0:01:23]} 29. Qd1 {[%clk 0:00:57]}  Qh3 {[%clk 0:01:23]} 30. Qf3 {[%clk 0:00:51]}  Re4 {[%clk 0:01:10]} 31. a5 {[%clk 0:00:47]}  h4 {[%clk 0:01:04]} 32. a6 {[%clk 0:00:47]}  bxa6 {[%clk 0:00:59]} 33. Rxc6 {[%clk 0:00:47]}  hxg3 {[%clk 0:00:58]} 34. hxg3 {[%clk 0:00:48]}  Rh4 {[%clk 0:00:56]} 35. Qg2 {[%clk 0:00:48]}  Qxg2+ {[%clk 0:00:46]} 36. Kxg2 {[%clk 0:00:48]}  Re4 {[%clk 0:00:43]} 37. Ra1 {[%clk 0:00:48]}  Rb8 {[%clk 0:00:28]} 38. Raxa6 {[%clk 0:00:48]}  Re7 {[%clk 0:00:28]} 39. Ra5 {[%clk 0:00:41]}  Rd7 {[%clk 0:00:27]} 40. Rcc5 {[%clk 0:00:41]}  Rbd8 {[%clk 0:00:23]} 41. Rab5 {[%clk 0:00:41]}  g5 {[%clk 0:00:23]} 42. g4 {[%clk 0:00:38]}  Kf7 {[%clk 0:00:23]} 43. Rxb4 {[%clk 0:00:38]}  Ke6 {[%clk 0:00:24]} 44. Rb6+ {[%clk 0:00:38]}  Rd6 {[%clk 0:00:24]} 45. Rcc6 {[%clk 0:00:37]}  Rxc6 {[%clk 0:00:22]} 46. Rxc6+ {[%clk 0:00:38]}  Kf7 {[%clk 0:00:23]} 47. b4 {[%clk 0:00:38]}  Rb8 {[%clk 0:00:23]} 48. Rd6 {[%clk 0:00:38]}  Rxb4 {[%clk 0:00:22]} 49. Rxd5 {[%clk 0:00:39]}  Ke6 {[%clk 0:00:21]} 50. Ra5 {[%clk 0:00:37]}  Rb1 {[%clk 0:00:21]} 51. Ra6+ {[%clk 0:00:37]}  Kf7 {[%clk 0:00:21]} 52. d5 {[%clk 0:00:35]}  Rd1 {[%clk 0:00:21]} 53. e4 {[%clk 0:00:35]}  Rd3 {[%clk 0:00:21]} 54. f3 {[%clk 0:00:33]}  Ke7 {[%clk 0:00:21]} 55. Kg3 {[%clk 0:00:32]}  Rd1 {[%clk 0:00:21]} 56. Kf2 {[%clk 0:00:32]}  Rd3 {[%clk 0:00:21]} 57. Ke2 {[%clk 0:00:32]}  Rb3 {[%clk 0:00:21]} 58. Re6+ {[%clk 0:00:31]}  Kf7 {[%clk 0:00:21]} 59. Ra6 {[%clk 0:00:32]}  Ke7 {[%clk 0:00:21]} 60. Re6+ {[%clk 0:00:30]}  Kf7 {[%clk 0:00:21]} 61. e5 {[%clk 0:00:30]}  fxe5 {[%clk 0:00:19]} 62. Rxe5 {[%clk 0:00:31]}  Kf6 {[%clk 0:00:19]} 63. Rf5+ {[%clk 0:00:32]}  Kg6 {[%clk 0:00:19]} 64. d6 {[%clk 0:00:30]}  Rb6 {[%clk 0:00:19]} 65. Rd5 {[%clk 0:00:30]}  Rb8 {[%clk 0:00:19]} 66. d7 {[%clk 0:00:30]}  Rd8 {[%clk 0:00:20]} 67. Ke3 {[%clk 0:00:31]}  Kf6 {[%clk 0:00:21]} 68. Ke4 {[%clk 0:00:31]}  Ke6 {[%clk 0:00:20]} 69. Rd1 {[%clk 0:00:27]}  Kf6 {[%clk 0:00:17]} 70. Rd6+ {[%clk 0:00:26]}  Ke7 {[%clk 0:00:17]} 71. Ke5 {[%clk 0:00:25]}  Kf7 {[%clk 0:00:16]} 72. Kf5 {[%clk 0:00:23]}  Ke7 {[%clk 0:00:17]} 73. Rd3 {[%clk 0:00:22]}  Kf7 {[%clk 0:00:12]} 74. Kxg5 {[%clk 0:00:22]}  Kg7 {[%clk 0:00:12]} 75. f4 {[%clk 0:00:22]}  Kf7 {[%clk 0:00:13]} 76. f5 {[%clk 0:00:22]}  Ke7 {[%clk 0:00:13]} 77. Kf4 {[%clk 0:00:22]}  Kf7 {[%clk 0:00:13]} 78. g5 {[%clk 0:00:22]}  Ke7 {[%clk 0:00:13]} 79. g6 {[%clk 0:00:22]}  Kf6 {[%clk 0:00:13]} 80. Rd6+ {[%clk 0:00:22]}  Kg7 {[%clk 0:00:14]} 81. Kg5 {[%clk 0:00:22]}  Kh8 {[%clk 0:00:12]} 82. f6 {[%clk 0:00:21]}  Kg8 {[%clk 0:00:13]} 83. Re6 {[%clk 0:00:21]}  Kf8 {[%clk 0:00:10]} 84. Re8+ {[%clk 0:00:21]}  Rxe8 {[%clk 0:00:11]} 85. dxe8=Q+ {[%clk 0:00:22]}  Kxe8 {[%clk 0:00:11]} 86. Kh6 {[%clk 0:00:23]}  Kf8 {[%clk 0:00:12]} 87. Kh7 {[%clk 0:00:23]} 1-0


[Site "https://www.chess.com"]

[Event "Titled Tuesday Blitz December 20 Late 2022"]
[White "Tarnowska, Aleksandra"]
[Black "Adel, Sara"]
[WhiteFideId "1180967"]
[BlackFideId "10616764"]
[WhiteElo "1776"]
[BlackElo "1997"]
[Result "1-0"]
[Round "10"]
[TimeControl "180+1"]
[Date "2022.12.21"]
[WhiteClock "0:00:19"]
[BlackClock "0:01:44"]

1. e4 {[%clk 0:03:00]}  c6 {[%clk 0:02:51]} 2. d4 {[%clk 0:02:59]}  d5 {[%clk 0:02:52]} 3. Nc3 {[%clk 0:02:58]}  dxe4 {[%clk 0:02:52]} 4. Nxe4 {[%clk 0:02:58]}  Bf5 {[%clk 0:02:53]} 5. Ng3 {[%clk 0:02:57]}  Bg6 {[%clk 0:02:53]} 6. h4 {[%clk 0:02:58]}  h6 {[%clk 0:02:53]} 7. h5 {[%clk 0:02:58]}  Bh7 {[%clk 0:02:54]} 8. Nf3 {[%clk 0:02:58]}  Nd7 {[%clk 0:02:53]} 9. Bd3 {[%clk 0:02:54]}  Bxd3 {[%clk 0:02:54]} 10. Qxd3 {[%clk 0:02:54]}  Ngf6 {[%clk 0:02:55]} 11. Be3 {[%clk 0:02:51]}  e6 {[%clk 0:02:55]} 12. O-O-O {[%clk 0:02:45]}  a5 {[%clk 0:02:55]} 13. Rhe1 {[%clk 0:02:41]}  a4 {[%clk 0:02:53]} 14. Bf4 {[%clk 0:02:04]}  Be7 {[%clk 0:02:52]} 15. Ne5 {[%clk 0:01:59]}  a3 {[%clk 0:02:45]} 16. b3 {[%clk 0:01:54]}  Nxe5 {[%clk 0:02:42]} 17. Bxe5 {[%clk 0:01:49]}  Bb4 {[%clk 0:02:36]} 18. c3 {[%clk 0:01:42]}  Ba5 {[%clk 0:02:33]} 19. Bxf6 {[%clk 0:01:33]}  Qxf6 {[%clk 0:02:34]} 20. Ne4 {[%clk 0:01:34]}  Qe7 {[%clk 0:02:31]} 21. Qg3 {[%clk 0:01:29]}  O-O-O {[%clk 0:02:29]} 22. Qxg7 {[%clk 0:01:17]}  Rhg8 {[%clk 0:02:19]} 23. Qe5 {[%clk 0:01:06]}  Bc7 {[%clk 0:02:18]} 24. Qf6 {[%clk 0:01:01]}  Qxf6 {[%clk 0:02:16]} 25. Nxf6 {[%clk 0:01:00]}  Rxg2 {[%clk 0:02:17]} 26. Re2 {[%clk 0:00:49]}  Bf4+ {[%clk 0:02:10]} 27. Kc2 {[%clk 0:00:48]}  Bg5 {[%clk 0:02:10]} 28. Ne4 {[%clk 0:00:45]}  Bh4 {[%clk 0:02:04]} 29. Rh1 {[%clk 0:00:41]}  Be7 {[%clk 0:02:03]} 30. Kd3 {[%clk 0:00:31]}  b6 {[%clk 0:02:01]} 31. f4 {[%clk 0:00:27]}  f5 {[%clk 0:01:58]} 32. Rxg2 {[%clk 0:00:26]}  fxe4+ {[%clk 0:01:57]} 33. Kxe4 {[%clk 0:00:27]}  Kd7 {[%clk 0:01:57]} 34. Rg7 {[%clk 0:00:25]}  Rf8 {[%clk 0:01:58]} 35. Rhg1 {[%clk 0:00:25]}  Ke8 {[%clk 0:01:53]} 36. Rh7 {[%clk 0:00:25]}  Rf7 {[%clk 0:01:54]} 37. Rg8+ {[%clk 0:00:24]}  Bf8 {[%clk 0:01:54]} 38. Rxf7 {[%clk 0:00:20]}  Kxf7 {[%clk 0:01:55]} 39. Rg6 {[%clk 0:00:21]}  Bg7 {[%clk 0:01:52]} 40. f5 {[%clk 0:00:21]}  exf5+ {[%clk 0:01:50]} 41. Kxf5 {[%clk 0:00:22]}  Bf8 {[%clk 0:01:50]} 42. Rxc6 {[%clk 0:00:22]}  b5 {[%clk 0:01:50]} 43. Rc7+ {[%clk 0:00:20]}  Ke8 {[%clk 0:01:48]} 44. Ke6 {[%clk 0:00:20]}  Kd8 {[%clk 0:01:47]} 45. Rf7 {[%clk 0:00:19]}  b4 {[%clk 0:01:44]} 46. Rxf8+ {[%clk 0:00:19]}  Kc7 {[%clk 0:01:44]} 47. cxb4 {[%clk 0:00:19]} 1-0


[Site "https://www.chess.com"]

[Event "Titled Tuesday Blitz December 20 Late 2022"]
[White "Thiel, Thomas"]
[Black "Broca Jimenez, Fernando"]
[WhiteFideId "4615964"]
[BlackFideId "5104742"]
[WhiteElo "2231"]
[BlackElo "2062"]
[Result "1/2-1/2"]
[Round "10"]
[TimeControl "180+1"]
[Date "2022.12.21"]
[WhiteClock "0:00:14"]
[BlackClock "0:00:20"]

1. e4 {[%clk 0:02:52]}  c5 {[%clk 0:03:00]} 2. Nc3 {[%clk 0:02:48]}  g6 {[%clk 0:03:00]} 3. d4 {[%clk 0:02:47]}  cxd4 {[%clk 0:03:01]} 4. Qxd4 {[%clk 0:02:45]}  Nf6 {[%clk 0:03:01]} 5. Be3 {[%clk 0:02:41]}  Nc6 {[%clk 0:03:00]} 6. Qd2 {[%clk 0:02:40]}  d6 {[%clk 0:03:00]} 7. f3 {[%clk 0:02:39]}  Bg7 {[%clk 0:02:59]} 8. Nge2 {[%clk 0:02:38]}  Qa5 {[%clk 0:02:58]} 9. O-O-O {[%clk 0:02:35]}  Be6 {[%clk 0:02:53]} 10. Kb1 {[%clk 0:02:32]}  O-O {[%clk 0:02:50]} 11. Nf4 {[%clk 0:02:30]}  Bd7 {[%clk 0:02:36]} 12. h4 {[%clk 0:02:24]}  h5 {[%clk 0:02:24]} 13. Bc4 {[%clk 0:02:18]}  Rfc8 {[%clk 0:02:21]} 14. g4 {[%clk 0:02:13]}  hxg4 {[%clk 0:02:20]} 15. h5 {[%clk 0:02:10]}  Ne5 {[%clk 0:02:02]} 16. Bb3 {[%clk 0:02:07]}  g5 {[%clk 0:01:57]} 17. Ng6 {[%clk 0:01:55]}  Nxf3 {[%clk 0:01:41]} 18. Qf2 {[%clk 0:01:47]}  Rxc3 {[%clk 0:01:30]} 19. bxc3 {[%clk 0:01:42]}  Qxc3 {[%clk 0:01:31]} 20. Nxe7+ {[%clk 0:01:39]}  Kf8 {[%clk 0:01:30]} 21. Nd5 {[%clk 0:01:38]}  Nxe4 {[%clk 0:01:18]} 22. Nxc3 {[%clk 0:01:33]}  Nxf2 {[%clk 0:01:15]} 23. Bxf2 {[%clk 0:01:26]}  Bxc3 {[%clk 0:01:15]} 24. Rxd6 {[%clk 0:01:16]}  Bc6 {[%clk 0:01:13]} 25. h6 {[%clk 0:01:09]}  Nd2+ {[%clk 0:01:10]} 26. Rxd2 {[%clk 0:01:07]}  Bxh1 {[%clk 0:00:55]} 27. Rd7 {[%clk 0:00:54]}  f6 {[%clk 0:00:54]} 28. Rf7+ {[%clk 0:00:52]}  Kg8 {[%clk 0:00:53]} 29. Rc7+ {[%clk 0:00:44]}  Kh8 {[%clk 0:00:52]} 30. Rxc3 {[%clk 0:00:43]}  Kh7 {[%clk 0:00:53]} 31. Rc7+ {[%clk 0:00:39]}  Kxh6 {[%clk 0:00:53]} 32. Rf7 {[%clk 0:00:38]}  Kg6 {[%clk 0:00:51]} 33. Bd4 {[%clk 0:00:38]}  Be4 {[%clk 0:00:26]} 34. Rxf6+ {[%clk 0:00:37]}  Kh5 {[%clk 0:00:27]} 35. Bf2 {[%clk 0:00:31]}  Rc8 {[%clk 0:00:19]} 36. Bf7+ {[%clk 0:00:29]}  Bg6 {[%clk 0:00:16]} 37. Bxg6+ {[%clk 0:00:29]}  Kh6 {[%clk 0:00:16]} 38. Bf5+ {[%clk 0:00:29]}  Kg7 {[%clk 0:00:17]} 39. Rg6+ {[%clk 0:00:29]}  Kf7 {[%clk 0:00:18]} 40. Bxc8 {[%clk 0:00:28]}  Kxg6 {[%clk 0:00:19]} 41. Bxg4 {[%clk 0:00:27]}  b6 {[%clk 0:00:18]} 42. Kc1 {[%clk 0:00:27]}  Kf6 {[%clk 0:00:19]} 43. Kd2 {[%clk 0:00:27]}  Ke5 {[%clk 0:00:20]} 44. Ke3 {[%clk 0:00:27]}  Kd5 {[%clk 0:00:18]} 45. Be2 {[%clk 0:00:25]}  a5 {[%clk 0:00:15]} 46. Bg3 {[%clk 0:00:23]}  b5 {[%clk 0:00:13]} 47. Bc7 {[%clk 0:00:22]}  Kc5 {[%clk 0:00:14]} 48. Bxa5 {[%clk 0:00:21]}  g4 {[%clk 0:00:14]} 49. Be1 {[%clk 0:00:20]}  b4 {[%clk 0:00:14]} 50. Bf2 {[%clk 0:00:20]}  Kb6 {[%clk 0:00:13]} 51. Kf4+ {[%clk 0:00:20]}  Ka5 {[%clk 0:00:14]} 52. Bc4 {[%clk 0:00:18]}  Ka4 {[%clk 0:00:14]} 53. Bb3+ {[%clk 0:00:18]}  Ka3 {[%clk 0:00:15]} 54. Kxg4 {[%clk 0:00:15]}  Kb2 {[%clk 0:00:16]} 55. Bd4+ {[%clk 0:00:14]}  Ka3 {[%clk 0:00:16]} 56. Bc5 {[%clk 0:00:15]}  Kb2 {[%clk 0:00:15]} 57. Bxb4 {[%clk 0:00:15]}  Ka1 {[%clk 0:00:15]} 58. a4 {[%clk 0:00:15]}  Kb2 {[%clk 0:00:16]} 59. a5 {[%clk 0:00:15]}  Ka1 {[%clk 0:00:17]} 60. a6 {[%clk 0:00:15]}  Kb2 {[%clk 0:00:18]} 61. a7 {[%clk 0:00:16]}  Ka1 {[%clk 0:00:19]} 62. a8=Q+ {[%clk 0:00:15]}  Kb2 {[%clk 0:00:20]} 63. Qa3+ {[%clk 0:00:15]}  Kb1 {[%clk 0:00:20]} 64. Qa2+ {[%clk 0:00:14]}  Kc1 {[%clk 0:00:20]} 65. c4 {[%clk 0:00:14]} 1/2-1/2


[Site "https://www.chess.com"]

[Event "Titled Tuesday Blitz December 20 Late 2022"]
[White "Zakhartsov, Vladimir"]
[Black "Keymer, Vincent"]
[WhiteFideId "4145097"]
[BlackFideId "12940690"]
[WhiteElo "2535"]
[BlackElo "2600"]
[Result "0-1"]
[Round "10"]
[TimeControl "180+1"]
[Date "2022.12.20"]
[WhiteClock "0:00:01"]
[BlackClock "0:00:05"]

1. c4 {[%clk 0:03:00]}  Nf6 {[%clk 0:02:59]} 2. Nc3 {[%clk 0:03:00]}  e5 {[%clk 0:02:59]} 3. Nf3 {[%clk 0:03:00]}  Nc6 {[%clk 0:03:00]} 4. e3 {[%clk 0:03:01]}  Bb4 {[%clk 0:02:59]} 5. Qc2 {[%clk 0:03:01]}  Bxc3 {[%clk 0:02:59]} 6. bxc3 {[%clk 0:03:01]}  e4 {[%clk 0:02:54]} 7. Ng5 {[%clk 0:03:00]}  Qe7 {[%clk 0:02:50]} 8. f3 {[%clk 0:03:00]}  exf3 {[%clk 0:02:49]} 9. Nxf3 {[%clk 0:03:01]}  O-O {[%clk 0:02:44]} 10. Be2 {[%clk 0:03:01]}  d6 {[%clk 0:02:39]} 11. O-O {[%clk 0:02:59]}  Bg4 {[%clk 0:02:38]} 12. d3 {[%clk 0:02:58]}  a6 {[%clk 0:02:30]} 13. e4 {[%clk 0:02:57]}  h6 {[%clk 0:02:27]} 14. h3 {[%clk 0:02:42]}  Bh5 {[%clk 0:02:25]} 15. Nh4 {[%clk 0:02:37]}  Bg6 {[%clk 0:02:17]} 16. Nxg6 {[%clk 0:02:31]}  fxg6 {[%clk 0:02:18]} 17. Be3 {[%clk 0:02:29]}  Kh8 {[%clk 0:02:14]} 18. Rf2 {[%clk 0:02:26]}  b5 {[%clk 0:02:07]} 19. cxb5 {[%clk 0:02:21]}  axb5 {[%clk 0:02:07]} 20. a4 {[%clk 0:02:20]}  d5 {[%clk 0:01:56]} 21. Rff1 {[%clk 0:01:33]}  bxa4 {[%clk 0:01:49]} 22. Rxa4 {[%clk 0:01:32]}  Rfe8 {[%clk 0:01:07]} 23. Rxa8 {[%clk 0:01:20]}  Rxa8 {[%clk 0:01:05]} 24. Bf3 {[%clk 0:01:15]}  dxe4 {[%clk 0:01:04]} 25. dxe4 {[%clk 0:01:11]}  Ne5 {[%clk 0:01:04]} 26. Be2 {[%clk 0:01:05]}  Re8 {[%clk 0:00:58]} 27. Re1 {[%clk 0:01:00]}  g5 {[%clk 0:00:52]} 28. Bd4 {[%clk 0:00:46]}  c5 {[%clk 0:00:46]} 29. Bf2 {[%clk 0:00:46]}  g4 {[%clk 0:00:46]} 30. hxg4 {[%clk 0:00:43]}  Nexg4 {[%clk 0:00:42]} 31. Bg3 {[%clk 0:00:43]}  Qxe4 {[%clk 0:00:36]} 32. Qxe4 {[%clk 0:00:39]}  Rxe4 {[%clk 0:00:37]} 33. Bf3 {[%clk 0:00:37]}  Rxe1+ {[%clk 0:00:34]} 34. Bxe1 {[%clk 0:00:36]}  Ne5 {[%clk 0:00:35]} 35. Be2 {[%clk 0:00:37]}  Ne4 {[%clk 0:00:33]} 36. Ba6 {[%clk 0:00:32]}  Kg8 {[%clk 0:00:30]} 37. Bb7 {[%clk 0:00:32]}  Nf6 {[%clk 0:00:21]} 38. Bg3 {[%clk 0:00:28]}  Nfg4 {[%clk 0:00:19]} 39. c4 {[%clk 0:00:21]}  Kf7 {[%clk 0:00:18]} 40. Bd5+ {[%clk 0:00:21]}  Kf6 {[%clk 0:00:17]} 41. Bf4 {[%clk 0:00:18]}  g5 {[%clk 0:00:17]} 42. Bc1 {[%clk 0:00:18]}  Ke7 {[%clk 0:00:17]} 43. Kf1 {[%clk 0:00:14]}  Nf6 {[%clk 0:00:16]} 44. Ba3 {[%clk 0:00:10]}  Kd6 {[%clk 0:00:16]} 45. Ba8 {[%clk 0:00:06]}  Nxc4 {[%clk 0:00:16]} 46. Bc1 {[%clk 0:00:07]}  Nd5 {[%clk 0:00:14]} 47. Bb7 {[%clk 0:00:07]}  Na5 {[%clk 0:00:12]} 48. Ba6 {[%clk 0:00:06]}  Nc6 {[%clk 0:00:11]} 49. Kf2 {[%clk 0:00:05]}  Ne5 {[%clk 0:00:11]} 50. Ke2 {[%clk 0:00:04]}  c4 {[%clk 0:00:09]} 51. Ba3+ {[%clk 0:00:04]}  Ke6 {[%clk 0:00:09]} 52. Bc8+ {[%clk 0:00:04]}  Kf6 {[%clk 0:00:09]} 53. Bb2 {[%clk 0:00:03]}  c3 {[%clk 0:00:09]} 54. Ba1 {[%clk 0:00:03]}  Nf4+ {[%clk 0:00:05]} 55. Kf2 {[%clk 0:00:01]}  c2 {[%clk 0:00:05]} 0-1


[Site "https://www.chess.com"]

[Event "Titled Tuesday Blitz December 20 Late 2022"]
[White "aidenzhouu"]
[Black "Aghasiyev, Kamal"]
[BlackFideId "13402854"]
[WhiteElo "2393"]
[BlackElo "2341"]
[Result "0-1"]
[Round "10"]
[TimeControl "180+1"]
[Date "2022.12.21"]
[WhiteClock "0:00:26"]
[BlackClock "0:00:20"]

1. Nf3 {[%clk 0:03:00]}  d5 {[%clk 0:02:50]} 2. c4 {[%clk 0:03:00]}  e6 {[%clk 0:02:49]} 3. d4 {[%clk 0:03:00]}  Nf6 {[%clk 0:02:47]} 4. g3 {[%clk 0:03:00]}  dxc4 {[%clk 0:02:44]} 5. Bg2 {[%clk 0:03:00]}  a6 {[%clk 0:02:44]} 6. O-O {[%clk 0:02:59]}  Nc6 {[%clk 0:02:44]} 7. e3 {[%clk 0:02:58]}  Rb8 {[%clk 0:02:43]} 8. Qc2 {[%clk 0:02:46]}  b5 {[%clk 0:02:37]} 9. b3 {[%clk 0:02:46]}  Nb4 {[%clk 0:02:34]} 10. Qe2 {[%clk 0:02:44]}  cxb3 {[%clk 0:02:26]} 11. axb3 {[%clk 0:02:45]}  Bb7 {[%clk 0:02:26]} 12. Ba3 {[%clk 0:02:38]}  Bd6 {[%clk 0:02:13]} 13. Rc1 {[%clk 0:02:35]}  O-O {[%clk 0:02:11]} 14. Bxb4 {[%clk 0:02:30]}  Bxb4 {[%clk 0:02:11]} 15. Ne5 {[%clk 0:02:31]}  Bxg2 {[%clk 0:02:07]} 16. Kxg2 {[%clk 0:02:31]}  Qd5+ {[%clk 0:01:53]} 17. Qf3 {[%clk 0:02:30]}  Qxb3 {[%clk 0:01:41]} 18. Rxa6 {[%clk 0:02:23]}  Qb2 {[%clk 0:01:34]} 19. Nd3 {[%clk 0:01:52]}  Qb3 {[%clk 0:01:30]} 20. Nxb4 {[%clk 0:01:50]}  Qxb4 {[%clk 0:01:30]} 21. Nc3 {[%clk 0:01:38]}  Qb2 {[%clk 0:01:24]} 22. Qd1 {[%clk 0:01:31]}  Rfd8 {[%clk 0:00:45]} 23. Ra2 {[%clk 0:01:09]}  Qb4 {[%clk 0:00:44]} 24. Rb1 {[%clk 0:01:09]}  Qc4 {[%clk 0:00:44]} 25. Qb3 {[%clk 0:01:10]}  Qc6+ {[%clk 0:00:34]} 26. f3 {[%clk 0:01:04]}  e5 {[%clk 0:00:26]} 27. dxe5 {[%clk 0:01:01]}  Ng4 {[%clk 0:00:26]} 28. Ne4 {[%clk 0:00:56]}  Nxe5 {[%clk 0:00:24]} 29. Rc2 {[%clk 0:00:52]}  Nc4 {[%clk 0:00:24]} 30. Qc3 {[%clk 0:00:33]}  Nxe3+ {[%clk 0:00:23]} 31. Kh3 {[%clk 0:00:26]}  Qh6# {[%clk 0:00:20]} 0-1


[Site "https://www.chess.com"]

[Event "Titled Tuesday Blitz December 20 Late 2022"]
[White "benny_aizenberg"]
[Black "Bjelobrk, Igor"]
[BlackFideId "4300726"]
[WhiteElo "2423"]
[BlackElo "2335"]
[Result "0-1"]
[Round "10"]
[TimeControl "180+1"]
[Date "2022.12.21"]
[WhiteClock "0:00:07"]
[BlackClock "0:00:29"]

1. e4 {[%clk 0:03:00]}  c5 {[%clk 0:02:55]} 2. Nf3 {[%clk 0:03:00]}  e6 {[%clk 0:02:55]} 3. d4 {[%clk 0:03:00]}  cxd4 {[%clk 0:02:55]} 4. Nxd4 {[%clk 0:03:01]}  Nf6 {[%clk 0:02:55]} 5. Nc3 {[%clk 0:03:00]}  Nc6 {[%clk 0:02:55]} 6. Nxc6 {[%clk 0:02:59]}  bxc6 {[%clk 0:02:54]} 7. e5 {[%clk 0:02:59]}  Nd5 {[%clk 0:02:53]} 8. Ne4 {[%clk 0:03:00]}  Qc7 {[%clk 0:02:52]} 9. f4 {[%clk 0:02:59]}  Rb8 {[%clk 0:02:52]} 10. c4 {[%clk 0:02:56]}  Bb4+ {[%clk 0:02:50]} 11. Ke2 {[%clk 0:02:57]}  O-O {[%clk 0:02:49]} 12. a3 {[%clk 0:02:56]}  Be7 {[%clk 0:02:41]} 13. cxd5 {[%clk 0:02:54]}  cxd5 {[%clk 0:02:41]} 14. Nd6 {[%clk 0:02:43]}  Bxd6 {[%clk 0:02:03]} 15. exd6 {[%clk 0:02:42]}  Qxd6 {[%clk 0:02:04]} 16. b4 {[%clk 0:02:32]}  f6 {[%clk 0:02:03]} 17. g3 {[%clk 0:02:27]}  e5 {[%clk 0:02:02]} 18. Bg2 {[%clk 0:02:27]}  d4 {[%clk 0:01:55]} 19. Qb3+ {[%clk 0:02:23]}  Kh8 {[%clk 0:01:54]} 20. Qd5 {[%clk 0:02:23]}  Qa6+ {[%clk 0:01:42]} 21. Kf2 {[%clk 0:02:23]}  Bb7 {[%clk 0:01:39]} 22. b5 {[%clk 0:02:00]}  Qb6 {[%clk 0:01:36]} 23. Qb3 {[%clk 0:01:57]}  Bxg2 {[%clk 0:01:32]} 24. Kxg2 {[%clk 0:01:58]}  Qxb5 {[%clk 0:01:26]} 25. Qxb5 {[%clk 0:01:57]}  Rxb5 {[%clk 0:01:27]} 26. Ra2 {[%clk 0:01:55]}  Rc8 {[%clk 0:01:22]} 27. Kf3 {[%clk 0:01:49]}  d5 {[%clk 0:01:20]} 28. fxe5 {[%clk 0:01:34]}  fxe5 {[%clk 0:01:19]} 29. Ke2 {[%clk 0:01:34]}  Kg8 {[%clk 0:01:13]} 30. Bd2 {[%clk 0:01:30]}  e4 {[%clk 0:01:10]} 31. Rc1 {[%clk 0:01:28]}  Rxc1 {[%clk 0:01:08]} 32. Bxc1 {[%clk 0:01:28]}  Kf7 {[%clk 0:01:04]} 33. Rb2 {[%clk 0:01:21]}  Rc5 {[%clk 0:01:04]} 34. Rb7+ {[%clk 0:01:18]}  Ke6 {[%clk 0:01:04]} 35. Bf4 {[%clk 0:01:12]}  Rc2+ {[%clk 0:01:03]} 36. Kd1 {[%clk 0:01:12]}  Rxh2 {[%clk 0:01:02]} 37. Rxg7 {[%clk 0:01:10]}  e3 {[%clk 0:00:57]} 38. Rxa7 {[%clk 0:01:06]}  Kf5 {[%clk 0:00:57]} 39. Re7 {[%clk 0:01:05]}  Kg4 {[%clk 0:00:45]} 40. Rf7 {[%clk 0:00:39]}  Kf3 {[%clk 0:00:42]} 41. Bb8+ {[%clk 0:00:17]}  Ke4 {[%clk 0:00:42]} 42. Ba7 {[%clk 0:00:16]}  Kd3 {[%clk 0:00:41]} 43. Ke1 {[%clk 0:00:15]}  Ra2 {[%clk 0:00:38]} 44. Kf1 {[%clk 0:00:10]}  Rxa3 {[%clk 0:00:37]} 45. Re7 {[%clk 0:00:08]}  Ra1+ {[%clk 0:00:35]} 46. Kg2 {[%clk 0:00:09]}  e2 {[%clk 0:00:35]} 47. Bxd4 {[%clk 0:00:08]}  e1=Q {[%clk 0:00:33]} 48. Rxe1 {[%clk 0:00:08]}  Rxe1 {[%clk 0:00:33]} 49. Bf6 {[%clk 0:00:08]}  Re6 {[%clk 0:00:29]} 50. Ba1 {[%clk 0:00:08]}  d4 {[%clk 0:00:28]} 51. Kf2 {[%clk 0:00:07]}  Kc4 {[%clk 0:00:29]} 52. Kf3 {[%clk 0:00:07]}  d3 {[%clk 0:00:29]} 0-1


[Site "https://www.chess.com"]

[Event "Titled Tuesday Blitz December 20 Late 2022"]
[White "monkins"]
[Black "Da Silva Junior, Sediney Mari"]
[BlackFideId "2132079"]
[WhiteElo "2236"]
[BlackElo "1996"]
[Result "1-0"]
[Round "10"]
[TimeControl "180+1"]
[Date "2022.12.21"]
[WhiteClock "0:01:15"]
[BlackClock "0:00:29"]

1. Nf3 {[%clk 0:02:57]}  f5 {[%clk 0:02:59]} 2. g3 {[%clk 0:02:56]}  Nf6 {[%clk 0:03:00]} 3. Bg2 {[%clk 0:02:57]}  d6 {[%clk 0:03:00]} 4. c4 {[%clk 0:02:57]}  c6 {[%clk 0:03:01]} 5. Nc3 {[%clk 0:02:56]}  e5 {[%clk 0:03:01]} 6. d3 {[%clk 0:02:55]}  Be7 {[%clk 0:03:01]} 7. O-O {[%clk 0:02:56]}  O-O {[%clk 0:03:01]} 8. b4 {[%clk 0:02:56]}  Be6 {[%clk 0:03:01]} 9. b5 {[%clk 0:02:56]}  Bf7 {[%clk 0:03:01]} 10. bxc6 {[%clk 0:02:51]}  bxc6 {[%clk 0:02:56]} 11. Ng5 {[%clk 0:02:48]}  h6 {[%clk 0:02:29]} 12. Nxf7 {[%clk 0:02:48]}  Rxf7 {[%clk 0:02:29]} 13. Rb1 {[%clk 0:02:45]}  Qc7 {[%clk 0:02:28]} 14. Qa4 {[%clk 0:02:38]}  Rf8 {[%clk 0:01:45]} 15. Ba3 {[%clk 0:02:37]}  Rc8 {[%clk 0:01:44]} 16. Rb3 {[%clk 0:02:07]}  Nbd7 {[%clk 0:01:42]} 17. Rfb1 {[%clk 0:01:59]}  Nb6 {[%clk 0:01:26]} 18. Qa5 {[%clk 0:01:54]}  f4 {[%clk 0:01:05]} 19. c5 {[%clk 0:01:49]}  dxc5 {[%clk 0:01:01]} 20. Bxc5 {[%clk 0:01:49]}  Bxc5 {[%clk 0:00:59]} 21. Qxc5 {[%clk 0:01:49]}  Nbd5 {[%clk 0:00:57]} 22. Nxd5 {[%clk 0:01:25]}  cxd5 {[%clk 0:00:56]} 23. Bxd5+ {[%clk 0:01:25]}  Nxd5 {[%clk 0:00:45]} 24. Qxd5+ {[%clk 0:01:26]}  Kh7 {[%clk 0:00:43]} 25. Rb7 {[%clk 0:01:25]}  Qc2 {[%clk 0:00:42]} 26. Qxe5 {[%clk 0:01:23]}  Rg8 {[%clk 0:00:36]} 27. R7b2 {[%clk 0:01:16]}  Qc6 {[%clk 0:00:32]} 28. Qxf4 {[%clk 0:01:15]}  Raf8 {[%clk 0:00:29]} 29. Qe4+ {[%clk 0:01:14]}  Qxe4 {[%clk 0:00:29]} 30. dxe4 {[%clk 0:01:15]} 1-0


[Site "https://www.chess.com"]